lending/lending_fUSD_20260110
["ID","MTS","AMOUNT","RATE_DAILY","PERIOD"]
[401169109,1768009849163,-150.0,0.00017898,2]
[401169110,1768009849173,-150.0,0.00017899,2]
[401169111,1768009849182,-500.0,0.00017899,2]
[401169112,1768009849192,-10000.0,0.000179,2]
[401169113,1768009849201,-365.15381069,0.000179,2]
[401169114,1768009849210,-25000.0,0.000179,3]
[401169115,1768009849221,-591.38897096,0.000179,2]
[401169116,1768009849233,-6228.92016198,0.000179,3]
[401169117,1768009849243,-1372.61182962,0.000179,2]
[401169118,1768009849252,-1372.61182962,0.000179,2]
[401169119,1768009849263,-1372.61182962,0.000179,2]
[401169120,1768009849272,-1372.61182962,0.000179,2]
[401169121,1768009849282,-1372.61182962,0.000179,2]
[401169122,1768009849291,-1372.61182962,0.000179,2]
[401169123,1768009849303,-1000.0,0.000179,2]
[401169124,1768009849312,-1372.61182962,0.000179,2]
[401169125,1768009849323,-6362.01013604,0.000179,2]
[401169126,1768009849333,-5422.05788852,0.000179,2]
[401169127,1768009849342,-26503.64522397,0.000179,2]
[401169128,1768009849353,-8031.82114008,0.000179,2]
[401169129,1768009849363,-7161.0,0.000179,2]
[401169130,1768009849372,-150.0,0.00017906,2]
[401169131,1768009849382,-150.0,0.00017909,2]
[401169132,1768009849392,-150.0,0.0001791,2]
[401169133,1768009849402,-7616.58903,0.0001791,2]
[401169134,1768009849413,-124816.0915377,0.00017911,2]
[401169135,1768009849423,-4729.9966948,0.00017911,2]
[401169136,1768009849433,-19128.2049825,0.00017911,2]
[401169137,1768009849447,-150.0,0.00017911,2]
[401169138,1768009849457,-151.0,0.00017915,2]
[401169139,1768009849467,-196.96188571,0.00017916,2]
[401169140,1768009849476,-150.0,0.00017917,2]
[401169141,1768009849486,-500.0,0.00017918,2]
[401169142,1768009849495,-150.0,0.00017918,2]
[401169143,1768009849505,-150.0,0.00017919,2]
[401169144,1768009849515,-150.0,0.00017924,2]
[401169145,1768009849525,-150.0,0.00017925,2]
[401169146,1768009849535,-150.0,0.00017932,2]
[401169147,1768009849545,-150.0,0.00017933,2]
[401169148,1768009849555,-150.0,0.00017936,2]
[401169149,1768009849565,-1000.0,0.00017938,2]
[401169150,1768009849575,-150.0,0.00017939,2]
[401169151,1768009849584,-150.0,0.00017944,2]
[401169152,1768009849594,-2351.0,0.00017944,2]
[401169153,1768009849603,-150.0,0.00017945,2]
[401169154,1768009849613,-181.00537575,0.00017946,2]
[401169155,1768009849623,-150.0,0.00017946,2]
[401169156,1768009849635,-150.0,0.00017949,2]
[401169157,1768009849644,-150.0,0.00017954,2]
[401169158,1768009849655,-150.0,0.00017956,2]
[401169159,1768009849665,-150.0,0.00017959,2]
[401169160,1768009849674,-150.0,0.00017963,2]
[401169161,1768009849684,-150.0,0.00017972,2]
[401169162,1768009849694,-303.0,0.00017973,2]
[401169163,1768009849703,-500.0,0.00017973,2]
[401169164,1768009849712,-500.0,0.00017973,2]
[401169165,1768009849722,-500.0,0.00017973,2]
[401169166,1768009849732,-500.0,0.00017973,2]
[401169167,1768009849741,-500.0,0.00017973,2]
[401169168,1768009849751,-150.34167383,0.00017973,2]
[401169169,1768009849760,-610.19552731,0.00017973,2]
[401169170,1768009849769,-500.0,0.00017973,2]
[401169171,1768009849779,-500.0,0.00017973,2]
[401169172,1768009849789,-500.0,0.00017973,2]
[401169173,1768009849798,-500.0,0.00017973,2]
[401169174,1768009849808,-500.0,0.00017973,2]
[401169175,1768009849818,-500.0,0.00017973,2]
[401169176,1768009849827,-191.10319937,0.00017973,2]
[401169177,1768009849838,-260.97339631,0.00017973,2]
[401169178,1768009849847,-433.9562915,0.00017973,2]
[401169179,1768009849857,-300.29995774,0.00017973,2]
[401169180,1768009849866,-500.0,0.00017973,2]
[401169181,1768009849876,-500.0,0.00017973,2]
[401169182,1768009849886,-500.0,0.00017973,2]
[401169183,1768009849895,-500.0,0.00017973,2]
[401169184,1768009849905,-500.0,0.00017973,2]
[401169185,1768009849914,-500.0,0.00017973,2]
[401169186,1768009849924,-500.0,0.00017973,2]
[401169187,1768009849933,-500.85151996,0.00017973,2]
[401169188,1768009849943,-500.0,0.00017973,2]
[401169189,1768009849952,-500.0,0.00017973,2]
[401169190,1768009849961,-500.0,0.00017973,2]
[401169191,1768009850050,-500.0,0.00017973,2]
[401169192,1768009850061,-500.0,0.00017973,2]
[401169193,1768009850070,-500.0,0.00017973,2]
[401169194,1768009850079,-501.2767774,0.00017973,2]
[401169195,1768009850088,-500.0,0.00017973,2]
[401169196,1768009850097,-500.0,0.00017973,2]
[401169197,1768009850106,-500.0,0.00017973,2]
[401169198,1768009850116,-500.0,0.00017973,2]
[401169199,1768009850125,-500.0,0.00017973,2]
[401169200,1768009850135,-500.0,0.00017973,2]
[401169201,1768009850144,-500.0,0.00017973,2]
[401169202,1768009850153,-500.0,0.00017973,2]
[401169203,1768009850163,-588.0072514,0.00017973,2]
[401169204,1768009850172,-500.0,0.00017973,2]
[401169205,1768009850182,-500.0,0.00017973,2]
[401169206,1768009850191,-500.0,0.00017973,2]
[401169207,1768009850200,-500.0,0.00017973,2]
[401169208,1768009850210,-500.0,0.00017973,2]
[401169209,1768009850231,-500.0,0.00017973,2]
[401169210,1768009850242,-571.47009533,0.00017973,2]
[401169211,1768009850251,-500.0,0.00017973,2]
[401169212,1768009850261,-500.0,0.00017973,2]
[401169213,1768009850273,-150.0,0.00017973,2]
[401169214,1768009850283,-150.0,0.00017973,2]
[401169215,1768009850293,-150.0,0.00017973,2]
[401169216,1768009850303,-150.0,0.00017975,2]
[401169217,1768009850313,-150.0,0.00017977,2]
[401169218,1768009850323,-150.0,0.00017978,2]
[401169219,1768009850333,-150.0,0.0001798,2]
[401169220,1768009850343,-150.0,0.00017981,2]
[401169221,1768009850352,-216.0,0.00017983,2]
[401169222,1768009850364,-1000.0,0.00017984,2]
[401169223,1768009850375,-1000.0,0.00017984,2]
[401169224,1768009850384,-391.73,0.00017984,2]
[401169225,1768009850394,-1000.0,0.0001799,2]
[401169226,1768009850404,-393.26677801,0.0001799,2]
[401169227,1768009850414,-393.26677801,0.0001799,2]
[401169228,1768009850423,-162.34338875,0.00017999,2]
[401169229,1768009850432,-1006.3197,0.00017999,2]
[401169230,1768009850442,-300.0,0.00017999,2]
[401169231,1768009850451,-300.0,0.00017999,2]
[401169232,1768009850461,-300.0,0.00017999,2]
[401169233,1768009850471,-300.0,0.00017999,2]
[401169234,1768009850481,-671.12852877,0.00017999,2]
[401169235,1768009850492,-500.0,0.00017999,2]
[401169236,1768009850501,-500.0,0.00017999,2]
[401169237,1768009850511,-500.0,0.00017999,2]
[401169238,1768009850521,-500.0,0.00017999,2]
[401169239,1768009850530,-500.0,0.00017999,2]
[401169240,1768009850540,-500.0,0.00017999,2]
[401169241,1768009850550,-435.97747503,0.00017999,2]
[401169242,1768009850560,-227.98056769,0.00018,2]
[401169243,1768009850570,-174.02592696,0.00018,2]
[401169244,1768009850585,-211.71180964,0.00018,2]
[401169245,1768009850595,-168.95489245,0.00018,2]
[401169246,1768009850605,-216.17286301,0.00018,2]
[401169247,1768009850615,-151.30794718,0.00018,2]
[401169248,1768009850625,-287.19045457,0.00018,2]
[401169249,1768009850637,-249.3099586,0.00018,2]
[401169250,1768009850647,-195.60258078,0.00018,2]
[401169251,1768009850657,-213.5300961,0.00018,2]
[401169252,1768009850667,-160.35362265,0.00018,2]
[401169253,1768009850677,-173.03993865,0.00018,2]
[401169254,1768009850687,-229.26830667,0.00018,2]
[401169255,1768009850697,-247.12115074,0.00018,2]
[401169256,1768009850707,-197.77953272,0.00018,2]
[401169257,1768009850719,-299.10146822,0.00018,2]
[401169258,1768009850729,-845969.00720099,0.00018,2]
[401169259,1768009850738,-607336.44617113,0.00018,2]
[401169260,1768009850747,-1000.0,0.00018,2]
[401169261,1768009850756,-1000.0,0.00018,2]
[401169262,1768009850765,-1000.0,0.00018,2]
[401169263,1768009850775,-1000.0,0.00018,2]
[401169264,1768009850784,-1000.0,0.00018,2]
[401169265,1768009850794,-1000.0,0.00018,2]
[401169266,1768009850804,-1000.0,0.00018,2]
[401169267,1768009850814,-1000.0,0.00018,2]
[401169268,1768009850826,-1000.0,0.00018,2]
[401169269,1768009850836,-1000.0,0.00018,2]
[401169270,1768009850846,-1000.0,0.00018,2]
[401169271,1768009850855,-1000.0,0.00018,2]
[401169272,1768009850865,-1000.0,0.00018,2]
[401169273,1768009850874,-1000.0,0.00018,2]
[401169274,1768009850885,-1000.0,0.00018,2]
[401169275,1768009850894,-1000.0,0.00018,2]
[401169276,1768009850905,-1000.0,0.00018,2]
[401169277,1768009850924,-1000.0,0.00018,2]
[401169278,1768009850936,-1000.0,0.00018,2]
[401169279,1768009850945,-323.08243842,0.00018,2]
[401169280,1768009850954,-728304.67581784,0.00018,2]
[401169281,1768009851650,-10185.87604076,0.00018,2]
[401169282,1768009851662,-366.07666003,0.00018,2]
[401169283,1768009851699,-340.62042057,0.00018,2]
[401169284,1768009852851,-353.1863629,0.00016225,2]
[401169285,1768009852864,-143.69923154,0.00016225,2]
[401169286,1768009852877,-127.76679054,0.00018,2]
[401169287,1768009852889,-416.62661885,0.00018,2]
[401169288,1768009852901,-745.41795146,0.00018,2]
[401169289,1768009852967,-1821.35577969,0.00018,2]
[401169290,1768009853148,-309.01576389,0.00016082,2]
[401169291,1768009853526,-181.28423611,0.00016082,2]
[401169292,1768009853536,-116.71576389,0.00018,2]
[401169293,1768009853916,-241829.69868304,0.00018,2]
[401169297,1768010437746,-339.6165,0.00014868,2]
[401169298,1768010437770,-51.54001902,0.00014868,2]
[401169351,1768011033045,-776.15703811,0.00014389,2]
[401169352,1768011033136,-834.9769566,0.00014389,2]
[401169353,1768011033237,-1584.69600529,0.00014389,2]
[401169354,1768011033246,-154.87775072,0.0001443,2]
[401169355,1768011033256,-1200.0,0.0001453,2]
[401169356,1768011033265,-5469.63784536,0.00014531,2]
[401169357,1768011033275,-300.0,0.0001454,2]
[401169358,1768011033284,-150.0,0.0001454,2]
[401169359,1768011033294,-2371.87645694,0.00014541,2]
[401169360,1768011033305,-5967.89243802,0.00014541,2]
[401169361,1768011033341,-853.92747061,0.00014541,2]
[401169362,1768011033352,-299.99,0.00014541,2]
[401169363,1768011038358,-769.31118832,0.00014541,2]
[401169364,1768011038458,-480.96,0.00014541,2]
[401169365,1768011038572,-45113.04396898,0.00014541,2]
[401169366,1768011038584,-1164.20057105,0.00014541,2]
[401169367,1768011038595,-963.02821688,0.00014541,2]
[401169368,1768011038606,-435.02464555,0.00014541,2]
[401169369,1768011038617,-3241.43173213,0.00014541,2]
[401169370,1768011038685,-1663.09331152,0.00014541,2]
[401169371,1768011038695,-154.87775071,0.00014548,2]
[401169372,1768011038705,-0.89178939,0.00014622,2]
[401169373,1768011038716,-165.76821061,0.00014622,2]
[401169374,1768011038725,-154.87775071,0.00014666,2]
[401169375,1768011038739,-149.35403868,0.00014765,2]
[401169383,1768011040128,-350.64596132,0.00014765,2]
[401169384,1768011040137,-278.05662068,0.00014765,2]
[401169385,1768011040152,-221.94337932,0.00014765,2]
[401169386,1768011040162,-213.7534439,0.00014765,2]
[401169387,1768011040172,-500.0,0.00014765,2]
[401169388,1768011040182,-500.0,0.00014765,2]
[401169389,1768011040191,-500.0,0.00014765,2]
[401169390,1768011040201,-119.28815403,0.00014765,2]
[401169391,1768011040213,-296.9,0.00014765,2]
[401169392,1768011040250,-83.81184597,0.00014765,2]
[401169393,1768011040260,-500.0,0.00014765,2]
[401169394,1768011040270,-500.0,0.00014765,2]
[401169395,1768011040279,-500.0,0.00014765,2]
[401169396,1768011040289,-500.0,0.00014765,2]
[401169397,1768011040298,-500.0,0.00014765,2]
[401169398,1768011040308,-19.18093045,0.00014765,2]
[401169399,1768011040320,-480.81906955,0.00014765,2]
[401169400,1768011040330,-500.0,0.00014765,2]
[401169401,1768011040339,-7924.10606351,0.00014767,2]
[401169402,1768011040351,-155.89487265,0.00014767,2]
[401169403,1768011040360,-1278.70512735,0.00014767,2]
[401169404,1768011040459,-5083.30500871,0.00014767,2]
[401169405,1768011040468,-372.66419583,0.00014767,2]
[401169406,1768011040477,-372.66419583,0.00014767,2]
[401169407,1768011040486,-184.89547063,0.00014767,2]
[401169408,1768011040496,-500.0,0.00014858,2]
[401169409,1768011040506,-165.20802132,0.00014858,2]
[401169410,1768011040515,-150.28145818,0.00014858,2]
[401169411,1768011040525,-172.65068175,0.00014858,2]
[401169412,1768011040534,-202.44825412,0.00014859,2]
[401169413,1768011040545,-1000000.0,0.00014859,2]
[401169414,1768011040554,-1000.0,0.00014867,2]
[401169415,1768011040565,-183.30285475,0.00014958,2]
[401169416,1768011040574,-1444.104,0.00014958,2]
[401169417,1768011040584,-1000.0,0.00014958,2]
[401169418,1768011040594,-25024.0485,0.00014959,2]
[401169419,1768011040603,-2236.8747,0.00014959,2]
[401169420,1768011040614,-1335.052,0.00014959,2]
[401169421,1768011040623,-10407.7785,0.00014959,2]
[401169422,1768011040633,-229.50398769,0.00014968,2]
[401169423,1768011040643,-182.57690535,0.00014968,2]
[401169424,1768011040653,-202.44825412,0.00014968,2]
[401169425,1768011040663,-759.82,0.0001505,2]
[401169426,1768011040672,-500.0,0.0001505,2]
[401169427,1768011040682,-500.0,0.0001505,2]
[401169428,1768011040691,-500.0,0.0001505,2]
[401169429,1768011040702,-500.0,0.0001505,2]
[401169430,1768011040711,-500.0,0.0001505,2]
[401169431,1768011040721,-500.0,0.0001505,2]
[401169432,1768011040733,-500.0,0.0001505,2]
[401169433,1768011040743,-500.0,0.0001505,2]
[401169434,1768011040752,-500.0,0.0001505,2]
[401169435,1768011040762,-500.0,0.0001505,2]
[401169436,1768011040771,-500.0,0.0001505,2]
[401169437,1768011040783,-527.34228679,0.0001505,2]
[401169438,1768011040794,-202.21881844,0.0001505,2]
[401169439,1768011040805,-500.0,0.0001505,2]
[401169440,1768011040815,-203.86411687,0.0001505,2]
[401169441,1768011040825,-500.0,0.0001505,2]
[401169442,1768011040834,-500.0,0.0001505,2]
[401169443,1768011040844,-500.0,0.0001505,2]
[401169444,1768011040854,-500.0,0.0001505,2]
[401169445,1768011040863,-500.0,0.0001505,2]
[401169446,1768011040873,-500.0,0.0001505,2]
[401169447,1768011040883,-500.0,0.0001505,2]
[401169448,1768011040892,-232.42510558,0.0001505,2]
[401169449,1768011040902,-505.33267795,0.0001505,2]
[401169450,1768011040911,-151.0,0.0001505,2]
[401169451,1768011040921,-151.0,0.0001505,2]
[401169452,1768011040931,-151.0,0.0001505,2]
[401169453,1768011040940,-151.0,0.0001505,2]
[401169454,1768011040949,-151.0,0.0001505,2]
[401169455,1768011040959,-151.0,0.0001505,2]
[401169456,1768011040969,-151.0,0.0001505,2]
[401169457,1768011040979,-151.0,0.0001505,2]
[401169458,1768011040989,-151.0,0.0001505,2]
[401169459,1768011040999,-151.0,0.0001505,2]
[401169460,1768011041010,-151.0,0.0001505,2]
[401169461,1768011041019,-151.0,0.0001505,2]
[401169462,1768011041030,-173.48362524,0.00015058,5]
[401169463,1768011041040,-500.0,0.00015059,2]
[401169464,1768011041050,-516.4841802,0.00015059,2]
[401169465,1768011041059,-500.0,0.00015059,2]
[401169466,1768011041069,-500.0,0.00015059,2]
[401169467,1768011041078,-500.0,0.00015059,2]
[401169468,1768011041087,-518.74295457,0.00015059,2]
[401169469,1768011041096,-500.0,0.00015068,2]
[401169470,1768011041105,-500.0,0.00015068,2]
[401169471,1768011041114,-500.0,0.00015068,2]
[401169472,1768011041123,-500.0,0.00015068,2]
[401169473,1768011041133,-166.66,0.00015105,2]
[401169474,1768011041143,-8080.00093607,0.00015115,2]
[401169475,1768011041152,-6362.01013604,0.00015115,2]
[401169476,1768011041162,-642.93196142,0.00015132,2]
[401169477,1768011041172,-1000.0,0.00015159,2]
[401169478,1768011041182,-372.66419583,0.00015215,2]
[401169479,1768011041191,-372.66419583,0.00015215,2]
[401169480,1768011041201,-500.0,0.00015259,2]
[401169481,1768011041211,-500.0,0.00015259,2]
[401169482,1768011041221,-500.0,0.00015259,2]
[401169483,1768011041231,-505.25136596,0.00015259,2]
[401169484,1768011041240,-500.0,0.00015259,2]
[401169485,1768011041250,-527.4021431,0.00015259,2]
[401169486,1768011041260,-327.61269242,0.00015259,2]
[401169487,1768011041271,-759.82,0.00015324,2]
[401169488,1768011041280,-8080.00093607,0.00015463,2]
[401169489,1768011041290,-6362.01013604,0.00015463,2]
[401169490,1768011041300,-166.66,0.00015587,2]
[401169491,1768011041309,-759.82,0.00015598,2]
[401169492,1768011041320,-166.66,0.00015607,2]
[401169493,1768011041330,-255.0,0.00015659,2]
[401169494,1768011041339,-372.66419583,0.00015662,2]
[401169495,1768011041348,-372.66419583,0.00015662,2]
[401169496,1768011041358,-393.26677801,0.00015801,2]
[401169497,1768011041367,-500.0,0.00015805,2]
[401169498,1768011041377,-8080.00093607,0.00015811,2]
[401169499,1768011041387,-6362.01013604,0.00015811,2]
[401169500,1768011041397,-519.75387124,0.00015828,2]
[401169501,1768011041407,-759.82,0.00015872,2]
[401169502,1768011041417,-320.21776591,0.000159,2]
[401169503,1768011041427,-320.21776589,0.000159,2]
[401169504,1768011041437,-320.21776589,0.000159,2]
[401169505,1768011041447,-320.21776589,0.000159,2]
[401169506,1768011041456,-301.0,0.0001592,2]
[401169507,1768011041466,-166.66,0.00015936,2]
[401169508,1768011041475,-1680.0,0.00015983,2]
[401169509,1768011041484,-351.4183772,0.00015994,2]
[401169510,1768011041494,-765.06698758,0.00015994,2]
[401169511,1768011041503,-250.0,0.00015994,2]
[401169512,1768011041513,-166.66,0.0001607,2]
[401169513,1768011041523,-4589.02,0.00016087,2]
[401169514,1768011041533,-372.66419583,0.0001611,2]
[401169515,1768011041543,-372.66419583,0.0001611,2]
[401169516,1768011041553,-759.82,0.00016146,2]
[401169517,1768011041563,-8080.00093607,0.00016159,2]
[401169518,1768011041573,-6362.01013604,0.00016159,2]
[401169519,1768011041583,-150.0,0.000162,2]
[401169520,1768011041592,-150.0,0.000162,2]
[401169521,1768011041602,-150.0,0.000162,2]
[401169522,1768011041611,-150.0,0.000162,2]
[401169523,1768011041620,-150.0,0.000162,2]
[401169524,1768011041631,-150.0,0.000162,2]
[401169525,1768011041641,-150.0,0.000162,2]
[401169526,1768011041651,-150.0,0.000162,2]
[401169527,1768011041661,-150.0,0.000162,2]
[401169528,1768011041671,-150.0,0.000162,2]
[401169529,1768011041680,-150.0,0.000162,2]
[401169530,1768011041691,-150.0,0.000162,2]
[401169531,1768011041700,-150.0,0.000162,2]
[401169532,1768011041710,-150.25923791,0.000162,2]
[401169533,1768011041720,-150.0,0.000162,2]
[401169534,1768011041731,-150.0,0.000162,2]
[401169535,1768011041741,-150.0,0.000162,2]
[401169536,1768011041751,-150.0,0.00016219,2]
[401169537,1768011041761,-250.65,0.0001622,2]
[401169538,1768011041770,-150.0,0.0001622,2]
[401169539,1768011041779,-150.0,0.00016222,2]
[401169540,1768011041789,-150.0,0.00016223,2]
[401169541,1768011041798,-150.0,0.00016225,2]
[401169542,1768011041807,-150.0,0.00016227,2]
[401169543,1768011041817,-150.0,0.00016228,2]
[401169544,1768011041827,-150.0,0.00016237,2]
[401169545,1768011041836,-150.0,0.00016241,2]
[401169546,1768011041846,-150.0,0.00016244,2]
[401169547,1768011041855,-150.0,0.00016246,2]
[401169548,1768011041866,-150.0,0.00016251,2]
[401169549,1768011041875,-150.0,0.00016254,2]
[401169550,1768011041885,-150.0,0.00016255,2]
[401169551,1768011041894,-150.0,0.00016256,2]
[401169552,1768011041903,-150.0,0.00016261,2]
[401169553,1768011041912,-150.0,0.00016264,2]
[401169554,1768011041922,-166.66,0.00016265,2]
[401169555,1768011041931,-150.0,0.00016267,2]
[401169556,1768011041942,-150.0,0.00016268,2]
[401169557,1768011041951,-613.94531007,0.00016273,2]
[401169558,1768011041960,-500.0,0.00016273,2]
[401169559,1768011041970,-150.0,0.00016275,2]
[401169560,1768011041980,-150.0,0.00016276,2]
[401169561,1768011041990,-150.0,0.00016281,2]
[401169562,1768011041999,-150.0,0.00016282,2]
[401169563,1768011042008,-150.0,0.00016283,2]
[401169564,1768011042019,-150.0,0.00016289,2]
[401169565,1768011042028,-150.0,0.0001629,2]
[401169566,1768011042038,-150.0,0.00016291,2]
[401169567,1768011042047,-150.0,0.00016294,2]
[401169568,1768011042057,-150.0,0.00016301,2]
[401169569,1768011042066,-150.0,0.00016302,2]
[401169570,1768011042076,-150.0,0.00016307,2]
[401169571,1768011042085,-150.0,0.00016311,2]
[401169572,1768011042095,-150.0,0.00016311,2]
[401169573,1768011042105,-150.0,0.00016312,2]
[401169574,1768011042115,-150.0,0.00016314,2]
[401169575,1768011042125,-150.0,0.00016323,2]
[401169576,1768011042134,-150.0,0.00016327,2]
[401169577,1768011042143,-150.0,0.00016329,2]
[401169578,1768011042152,-150.0,0.00016329,2]
[401169579,1768011042161,-150.0,0.00016331,2]
[401169580,1768011042171,-150.0,0.00016333,2]
[401169581,1768011042180,-150.0,0.00016334,2]
[401169582,1768011042471,-150.0,0.00016337,2]
[401169583,1768011042481,-150.0,0.00016338,2]
[401169584,1768011042491,-150.0,0.00016343,2]
[401169585,1768011042501,-150.0,0.0001635,2]
[401169586,1768011042511,-150.0,0.00016352,2]
[401169587,1768011042520,-150.0,0.00016356,2]
[401169588,1768011042529,-150.0,0.00016359,2]
[401169589,1768011042539,-150.0,0.00016361,2]
[401169590,1768011042549,-150.0,0.00016364,2]
[401169591,1768011042558,-150.0,0.00016366,2]
[401169592,1768011042568,-150.0,0.00016369,2]
[401169593,1768011042578,-150.0,0.00016377,2]
[401169594,1768011042587,-150.0,0.00016378,2]
[401169595,1768011042597,-150.0,0.0001638,2]
[401169596,1768011042607,-150.0,0.00016382,2]
[401169597,1768011042616,-150.0,0.00016384,2]
[401169598,1768011042625,-150.0,0.00016387,2]
[401169599,1768011042635,-150.0,0.00016388,2]
[401169600,1768011042645,-150.0,0.00016393,2]
[401169601,1768011042655,-150.0,0.00016394,2]
[401169602,1768011042665,-150.0,0.000164,2]
[401169603,1768011042674,-150.0,0.00016403,2]
[401169604,1768011042684,-150.0,0.00016405,2]
[401169605,1768011042693,-150.0,0.00016405,2]
[401169606,1768011042702,-150.0,0.00016406,2]
[401169607,1768011042711,-150.0,0.00016415,2]
[401169608,1768011042721,-759.82,0.0001642,2]
[401169609,1768011042732,-150.0,0.00016422,2]
[401169610,1768011042742,-150.0,0.00016422,2]
[401169612,1768011042752,-150.0,0.00016425,2]
[401169613,1768011042762,-150.0,0.00016425,2]
[401169614,1768011042771,-150.0,0.00016425,2]
[401169615,1768011042781,-150.0,0.00016428,2]
[401169616,1768011042790,-150.0,0.00016428,2]
[401169618,1768011042801,-500.0,0.00016438,2]
[401169619,1768011042811,-500.0,0.00016438,2]
[401169620,1768011042820,-500.0,0.00016438,2]
[401169621,1768011042830,-500.0,0.00016438,2]
[401169622,1768011042839,-500.0,0.00016438,2]
[401169623,1768011042848,-500.0,0.00016438,2]
[401169624,1768011042858,-500.0,0.00016438,2]
[401169625,1768011042866,-500.0,0.00016438,2]
[401169626,1768011042876,-500.0,0.00016438,2]
[401169627,1768011042885,-500.0,0.00016438,2]
[401169628,1768011042895,-500.0,0.00016438,2]
[401169629,1768011042906,-500.0,0.00016438,2]
[401169630,1768011042916,-500.0,0.00016438,2]
[401169631,1768011042926,-605.69077353,0.00016438,2]
[401169632,1768011042935,-600.0,0.00016438,2]
[401169633,1768011042946,-150.0,0.00016442,2]
[401169634,1768011042956,-150.0,0.00016444,2]
[401169635,1768011042965,-150.0,0.00016444,2]
[401169636,1768011042975,-150.0,0.00016445,2]
[401169637,1768011042984,-150.0,0.00016449,2]
[401169638,1768011042994,-150.0,0.00016451,2]
[401169639,1768011043004,-150.0,0.00016454,2]
[401169640,1768011043014,-454.0,0.00016454,2]
[401169641,1768011043023,-150.0,0.00016457,2]
[401169642,1768011043033,-150.0,0.00016457,2]
[401169643,1768011043044,-150.0,0.00016462,2]
[401169644,1768011043054,-150.0,0.00016466,2]
[401169645,1768011043064,-150.0,0.00016467,2]
[401169646,1768011043074,-150.0,0.00016469,2]
[401169647,1768011043083,-150.0,0.0001647,2]
[401169648,1768011043093,-150.0,0.00016473,2]
[401169649,1768011043102,-150.0,0.00016477,2]
[401169650,1768011043111,-150.0,0.00016479,2]
[401169651,1768011043121,-150.0,0.00016481,2]
[401169652,1768011043130,-150.0,0.00016486,2]
[401169653,1768011043139,-150.0,0.00016489,2]
[401169654,1768011043149,-454.0,0.00016493,2]
[401169655,1768011043158,-150.0,0.00016496,2]
[401169656,1768011043168,-150.0,0.00016496,2]
[401169657,1768011043177,-150.0,0.000165,2]
[401169658,1768011043186,-150.0,0.00016504,2]
[401169659,1768011043196,-150.0,0.00016505,2]
[401169660,1768011043205,-150.0,0.00016507,2]
[401169661,1768011043214,-8080.00093607,0.00016508,2]
[401169662,1768011043224,-6362.01013604,0.00016508,2]
[401169663,1768011043233,-150.0,0.00016511,2]
[401169664,1768011043243,-150.0,0.00016519,2]
[401169665,1768011043252,-150.0,0.00016519,2]
[401169666,1768011043262,-150.0,0.00016521,2]
[401169667,1768011043271,-150.0,0.00016522,2]
[401169668,1768011043281,-150.0,0.00016527,2]
[401169669,1768011043290,-150.0,0.0001653,2]
[401169670,1768011043299,-150.0,0.00016532,2]
[401169671,1768011043309,-150.0,0.00016533,2]
[401169672,1768011043318,-150.0,0.00016537,2]